Cogmind - Beta 14 @@@ ROGUE MODE // 2025.01.03 @ 09:16:11 Player: Willow Result: Destroyed by as-19409 with Assembled Heavy Rifle Performance ------------- Evolutions (0) 0 Regions Visited (2) 400 Robots Destroyed (39) 195 Value Destroyed (772) 772 Prototype IDs (0) 0 Alien Tech Used (0) 0 Bonus (0) 0 TOTAL SCORE: 1367 Bonus ------- None Cogmind --------- Core Integrity 0/250 Matter 238/300 Energy 120/200 System Corruption 1% Temperature Warm (115) Movement Rolling (95) Ox1 Location -10/Mines Parts ------- > --- POWER (1) -------- Subdweller Power Source > --- PROPULSION (2) --- Wheel Wheel > --- UTILITY (2) ------ Large Storage Unit Core Shielding > --- WEAPON (2) ------- Particle Gun > --- INVENTORY (15) --- Wheel Wheel Improved Heat Sink Light Armor Plating Light Armor Plating Medium Laser Subdweller Machine Gun Datajack Mining Laser Peak State ------------ > --- POWER ------------ Light Nuclear Core > --- PROPULSION ------- Wheel Wheel > --- UTILITY ---------- Improved Heat Sink Large Storage Unit > --- WEAPON ----------- Medium Laser Particle Gun > --- INVENTORY -------- Subdweller Power Source Wheel Wheel Wheel Wheel Core Shielding Light Armor Plating Light Armor Plating Medium Laser Particle Gun Subdweller Machine Gun Rocket Launcher Datajack Mining Laser [Rating: 13] Favorites ----------- Power Light Ion Engine Engine Light Ion Engine Power Core Light Nuclear Core Propulsion Wheel Wheel Wheel Utility Large Storage Unit Device Improved Terrain Scanner Storage Large Storage Unit Processor Signal Interpreter Protection Light Armor Plating Weapon Medium Laser Energy Gun Medium Laser Ballistic Gun Light Assault Rifle Launcher Rocket Launcher Build | -11 -10 -10 ------- Run | Yrd Mat Min Slots Evolved . | . . . Power . | . . . Propulsion . | . . . Utility . | . . . Weapon . | . . . Parts Attached 47 | 8 28 11 Power 7 | 1 5 1 Engine 6 | 1 4 1 Core 1 | . 1 . Reactor . | . . . Propulsion 14 | 2 9 3 Treads . | . . . Leg . | . . . Wheel 14 | 2 9 3 Hover . | . . . Flight . | . . . Utility 14 | 3 8 3 Device 6 | 2 3 1 Storage 3 | 1 2 . Processor 1 | . 1 . Hackware . | . . . Protection 4 | . 2 2 Artifact . | . . . Weapon 12 | 2 6 4 Energy Gun 10 | 1 6 3 Energy Cannon . | . . . Ballistic Gun 1 | 1 . . Ballistic Cannon . | . . . Launcher 1 | . . 1 Special Weapon . | . . . Impact Weapon . | . . . Slashing Weapon . | . . . Piercing Weapon . | . . . Special Melee Weapon . | . . . Unidentified Prototypes . | . . . Parts Lost 19 | . 12 7 Power 3 | . 2 1 Propulsion 10 | . 7 3 Utility 1 | . 1 . Weapon 5 | . 2 3 Highest Loss Streak 6 | . 4 6 To Critical Strikes . | . . . Average Slot Usage (%) 98 | . 98 99 Engine 9 | . 11 . Core 4 | . 2 13 Wheel 27 | . 27 27 Device 7 | . 9 1 Storage 13 | . 13 14 Processor 1 | . 1 . Protection 4 | . 3 12 Energy Gun 21 | . 19 28 Ballistic Gun 6 | . 7 . Peak Build Rating 13 | 9 12 13 Average Rating 9 | 6 9 11 On Entrance 6 | . 9 11 Naked Turns . | . . . Heaviest Build 32 | 11 31 32 Greatest Support 20 | 20 20 20 Greatest Overweight (x) 3 | . 2 3 Average Overweight (x) . | . . 1 Largest Inventory Capacity 15 | 8 15 15 Average Capacity 14 | 6 14 15 Most Carried 15 | 5 15 15 Average Carried 10 | 2 10 14 Final Capacity 15 | 5 15 15 Final Carried 15 | 5 15 9 Class Distribution -------------------- 83% | Mutant 16% | Scavenger-Mutant Dominant Class ---------------- Mutant | -10/Materials Mutant | -10/Mines Resources | -11 -10 -10 ----------- Run | Yrd Mat Min Matter Collected 639 | 255 337 47 Remotely . | . . . Salvage Created 1419 | 143 1082 194 Parts 75 | 15 55 5 Haulers Intercepted 2 | . 2 . Recyclers Shooed . | . . . Parts Field Recycled . | . . . Retrieved Matter . | . . . Parts Self-Destructed . | . . . Prevented . | . . . Kills | -11 -10 -10 ------- Run | Yrd Mat Min Combat Hostiles Destroyed 25 | . 18 7 Guns 20 | . 16 4 AOE 3 | . . 3 Classes Destroyed 10 | 2 7 1 Worker 3 | . 3 . Builder 2 | . 2 . Tunneler 4 | 3 . 1 Hauler 2 | . 2 . Recycler 5 | 1 4 . Watcher 1 | . 1 . Swarmer 6 | . 6 . Grunt 14 | . 10 4 Subdweller 2 | . 2 . Assembled 3 | . . 3 Best Kill Streak 4 | 2 4 4 Combat Bots Only 3 | . 3 3 Max Kills in Single Turn 3 | 1 1 3 Gunslinging . | . . . Exploded 3 | . . 3 Melee . | . . . Uniques/NPCs Destroyed . | . . . Combat | -11 -10 -10 -------- Run | Yrd Mat Min Hostile Shots Fired 159 | . 108 51 Missed 39 | . 26 13 Damage Taken 1678 | . 965 713 Core 261 | . 101 160 Absorbed by Shields . | . . . Redirected to Shielding 28 | . . 28 Regen/Repaired (Parts) 61 | . 61 . Core Remaining (%) 100 | 100 . . Volleys Fired 132 | 24 86 22 Largest 2 | 2 2 2 Hottest 130 | 60 90 130 Shots Fired 248 | 42 169 37 Gun 246 | 42 169 35 Cannon . | . . . Launcher 2 | . . 2 Special . | . . . Kinetic 80 | 24 56 . Thermal 166 | 18 113 35 Explosive 2 | . . 2 Electromagnetic . | . . . Robot Hit Streak 24 | 7 24 12 Robot Miss Streak 3 | 3 3 2 Penetration Max . | . . . Secondary Targets 1 | . 1 . Max Gunslinging Chain 1 | . 1 . Shots Hit Robots 172 | 25 121 26 Core Hits 81 | 7 54 20 Critical Kills . | . . . Critical Parts Destroyed . | . . . Critical Strikes 12 | . 11 1 Burn 12 | . 11 1 Melee Attacks . | . . . Impact . | . . . Slashing . | . . . Piercing . | . . . Sneak Attacks . | . . . Combat Hostiles . | . . . Follow-up Attacks . | . . . Damage Inflicted 2173 | 236 1346 591 Guns 1916 | 236 1338 342 Cannons . | . . . Explosions 249 | . . 249 Melee . | . . . Ramming 8 | . 8 . Kinetic 411 | 89 322 . Thermal 1505 | 147 1016 342 Explosive 249 | . . 249 Electromagnetic . | . . . Impact . | . . . Slashing . | . . . Piercing . | . . . Highest Corruption 1 | . 1 1 Average Corruption 1 | . 1 1 Corruption Purged . | . . . Corruption Blocked . | . . . Effects 5 | . 3 2 Message Errors 3 | . 2 1 Matter Fused 1 | . . 1 Heat Flow Errors 1 | . 1 . Overload Shots . | . . . Overflow Damage 11 | . . 11 Projectiles . | . . . Explosions 11 | . . 11 Melee . | . . . Knockbacks . | . . . Impact . | . . . Kinetic . | . . . Secondary . | . . . Self-Inflicted Damage 64 | . 4 60 Shots 2 | . . 2 Rammed 1 | . 1 . Targets Rammed 1 | . 1 . Kicked . | . . . Crushed . | . . . Highest Temperature 339 | 60 308 339 Average Temperature 85 | 30 73 172 Received Heat Transfer 426 | . 279 147 Effects 6 | . 3 3 Shutdowns 1 | . . 1 Energy Bleed 2 | . 1 1 Interference 3 | . 2 1 Siege Activations . | . . . Robots Corrupted . | . . . Combat Hostiles . | . . . Parts Fried . | . . . Impact Corruptions . | . . . Robots Melted 2 | . 2 . Combat Hostiles 2 | . 2 . Parts Melted 9 | . 7 2 Heat Transferred 4898 | 325 3597 976 Parts Sabotaged . | . . . Parts Stolen . | . . . Parts Stripped . | . . . Power Chain Reactions . | . . . Alert | -11 -10 -10 ------- Run | Yrd Mat Min Peak Influence 261 | 20 261 147 Initial 27 | . 13 27 Average 97 | 9 109 86 Maximum Alert Level 1 | . 1 . Low Security (%) 92 | 100 90 100 Level 1 7 | . 9 . Level 2 . | . . . Level 3 . | . . . Level 4 . | . . . Level 5 . | . . . High Security . | . . . Max Security . | . . . Squads Dispatched 3 | . 3 . Investigation 3 | . 3 . Extermination . | . . . Reinforcement . | . . . Assault . | . . . Garrison . | . . . Intercept . | . . . Searches Triggered . | . . . Construction Impeded . | . . . Haulers Reinforced . | . . . Active Scanning Responses . | . . . Cargo Convoy Interrupts . | . . . Stealth | -11 -10 -10 --------- Run | Yrd Mat Min Distress Signals 2 | . 1 1 Communications Jammed . | . . . Distress Signals . | . . . Times Spotted 45 | . 25 20 Peak Tracking Total 8 | . 4 8 Tactical Retreats 5 | . 3 2 Traps | -11 -10 -10 ------- Run | Yrd Mat Min Traps Triggered 3 | . 3 . Indirectly . | . . . Trap Hack Attempts . | . . . Triggered . | . . . Disarmed . | . . . Reprogrammed . | . . . Reused . | . . . Traps Extracted . | . . . Installed . | . . . Triggered . | . . . Machines | -11 -10 -10 ---------- Run | Yrd Mat Min Machines Disabled . | . . . Max in Single Turn . | . . . Machines Repaired . | . . . Machines Dismantled . | . . . Machines Sabotaged . | . . . Overloaded Fab Kills . | . . . Hacking | -11 -10 -10 --------- Run | Yrd Mat Min Machines Accessed 11 | . 11 . Terminals 8 | . 8 . Fabricators . | . . . Repair Stations 1 | . 1 . Recycling Units 2 | . 2 . Scanalyzers . | . . . Garrison Access . | . . . Total Hacks 25 | . 25 . Successful 13 | . 13 . Failed 11 | . 11 . Catastrophic 1 | . 1 . Database Lockouts 1 | . 1 . Manual 23 | . 23 . Terminals 21 | . 21 . Fabricators . | . . . Repair Stations 2 | . 2 . Recycling Units 2 | . 2 . Scanalyzers . | . . . Garrison Access . | . . . Terminal Hacks 4 | . 4 . Robot Analysis 2 | . 2 . Terminal Index 1 | . 1 . Alert Level 1 | . 1 . Fabricator Hacks . | . . . Repair Station Hacks 2 | . 2 . Scan Component 1 | . 1 . Repair 1 | . 1 . Recycling Unit Hacks . | . . . Scanalyzer . | . . . Garrison Access Hacks . | . . . Unauthorized Hacks 7 | . 7 . Terminals 5 | . 5 . Track 1 | . 1 . Botnet 3 | . 3 . Operators 1 | . 1 . Fabricators . | . . . Repair Stations . | . . . Recycling Units 2 | . 2 . Tunnel 2 | . 2 . Scanalyzers . | . . . Garrison Access . | . . . Data Cores Recovered . | . . . Used . | . . . Hacking Detections 8 | . 8 . Full Trace Events 1 | . 1 . Feedback Events . | . . . Feedback Blocked . | . . . Robot Schematics Acquired . | . . . Robots Built . | . . . Authchips . | . . . Time . | . . . Total Robot Build Rating . | . . . Part Schematics Acquired . | . . . Parts Built . | . . . Authchips . | . . . Time . | . . . Total Part Build Rating . | . . . Parts Repaired 1 | . 1 . Time 26 | . 26 . Parts Recycled . | . . . Recycled Matter . | . . . Retrieved Matter . | . . . Retrieved Components . | . . . Parts Scanalyzed . | . . . Part Schematics Acquired . | . . . Parts Damaged . | . . . Bothacking | -11 -10 -10 ------------ Run | Yrd Mat Min Used RIF Installer . | . . . Robots Hacked . | . . . Non-combat . | . . . Combat . | . . . Robot Hacks Applied . | . . . Relay Couplers Released . | . . . Fabnet Peak Effective % . | . . . Robots Rewired . | . . . Allies Hacked . | . . . Hacks Repelled . | . . . Allies | -11 -10 -10 -------- Run | Yrd Mat Min Total Allies . | . . . Largest Group . | . . . Highest-Rated Group . | . . . Highest-Rated Ally . | . . . Total Orders . | . . . Ally Attacks . | . . . Total Damage . | . . . Kills . | . . . Allies Corrupted . | . . . Allies Melted . | . . . Intel | -11 -10 -10 ------- Run | Yrd Mat Min Robot Analysis Total 2 | . 2 . Derelict Logs Recovered . | . . . Drone Launches . | . . . Drone Recoveries . | . . . Exploration | -11 -10 -10 ------------- Run | Yrd Mat Min Turns Passed 2084 | 153 1543 388 Spaces Moved 1373 | 94 988 291 Core 10 | 10 . . Treads . | . . . Legs . | . . . Wheels 1363 | 84 988 291 Hover . | . . . Flight . | . . . Fastest Speed 50 | 50 80 95 Average Speed 93 | 76 94 95 Slowest Speed 125 | 80 110 125 Overloaded Moves . | . . . Propulsion Burnouts . | . . . Robots Hopped . | . . . Cave-ins Triggered . | . . . Exploration Rate (%) 55 | 5 97 63 Regions Visited 2 Branch Regions 1 Pre-discovered Areas 2 | . 2 . Known Exits Taken 1 | . 1 . Unknown Exits Taken 1 | 1 . . Scrap Searched 1 | . . 1 Spaces Dug . | . . . Terrain Destroyed 23 | . . 23 Melee . | . . . Projectile . | . . . AOE 23 | . . 23 Terrain Rammed . | . . . Walls Destroyed . | . . . Machines Disabled . | . . . Actions | -11 -10 -10 --------- Run | Yrd Mat Min Total 1941 | 134 1445 362 Wait 325 | . 290 35 Move 1371 | 93 987 291 Hop . | . . . Pick Up 42 | 6 35 1 Fast Attach 14 | 8 5 1 Attach 20 | . 14 6 Detach 3 | 1 2 . Swap 13 | . 9 4 Drop 20 | 2 16 2 Fire 132 | 24 86 22 Melee . | . . . Ram 1 | . 1 . Kick . | . . . Crush . | . . . Escape Stasis . | . . . Rewire . | . . . Trap . | . . . Miscellaneous . | . . . Route ------- -11/Scrapyard -10/Materials (discovered 6 exits: [*Mat x3] / *Min x2 / [*Sub]) -10/Mines History --------- Turn | Location | Event 4 | -11/Scrapyard | Discovered new exit (range 15) 154 | -11/Scrapyard | Entered Materials 311 | -10/Materials | Build established: Mutant 346 | -10/Materials | Discovered new exit (range 13) 445 | -10/Materials | Discovered new exit (range 4) 524 | -10/Materials | Repaired Med. Laser 568 | -10/Materials | Discovered new exit (range 6) 594 | -10/Materials | Identified exit to Mines 841 | -10/Materials | Discovered new exit (range 13) 931 | -10/Materials | Central database locked down 978 | -10/Materials | Discovered new exit (range 10) 1038 | -10/Materials | Lost 4 parts (1p2n1w) 1054 | -10/Materials | Derelicts attacked the area 1336 | -10/Materials | Discovered new exit (range 16) 1455 | -10/Materials | Lost 4 parts (1p1n1u1w) 1697 | -10/Materials | Entered Mines 1768 | -10/Mines | Received a Rocket Launcher from a helpful Derelict 1897 | -10/Mines | Core integrity fell below 50% 2042 | -10/Mines | Assembled infested the area 2080 | -10/Mines | Core integrity fell below 20% 2085 | -10/Mines | Destroyed by as-19409 with Assembled Heavy Rifle Last Messages --------------- 02046_ K-01 Serf collects debris. 02050_ K-01 Serf sends out distress signal. 02051_ as-76933 destroyed. 02051_ as-38108 destroyed. 02051_ as-06917 destroyed. 02059_ T-07 Excavator destroyed. 02073_ Lgt. Nuclear Core destroyed. 02073_ Destroyed Lgt. Nuclear Core. 02073_ T-07 Excavator destroyed. 02073_ K-01 Serf destroyed. 02075_ as-27861 destroyed. 02075_ as-40621 destroyed. 02075_ as-54012 destroyed. 02076_ Wheel destroyed. 02078_ Rocket Launcher destroyed. 02082_ The unstable cave ceiling collapses. 02083_ ALO7AQ#JP50FUKUAVYGTZLT#&EPXI 02083_ Destroyed Asb. Blade. 02083_ as-27904 destroyed. 02085_ Particle Gun destroyed. Map ----- +----------------------------------------------------+ | ######## #???????# # #????????? ???? | | #???????###### #??????? #??? | | ##########????????????## ####### #????? | | ???????????????????????# #?????? | | ???????????????????????## ??????? | | ????????????????????????### #### #### #??????? | | ??????????????????????????### #??# #????????????? | | ????????????????????????????# #??# ##???????????? | | ????????????????????????????# #?## ####???????## | | ????????????????????????????# ### ##?????## | | ??#?????????????????????????# ##???## | | ? #?????????????????????????# [ #??## | | #?????????????????????????########## % %#### | | #??????????????????????????????????## | | #???????????????????????????????????## | | #???????????????????????????####?????########### | | ###??????????????????????????## ##?????????????# | | ?????????????????????????????# ##????????????? | | ?????????????????????????????# ##???????????? | | ?????####################?????? #???????????? | | ###### #???????# #??#####????? | | ########?# #### ##???? | | ## ## ######### # ### ## ##### | | ?# ### ## #???????# r ## a | | ?# #?## #####???????# a a | | ?# #??####???????????# @%| a ##### ### | | ? #?????????????????### ##???####%*#### | | ?###???????????????????# ### ##???????# ### | | ???????????????????????# ##### #??????### # | | ???????????????????????# #??# #?????## | | ???????????????????????# #??# #?????# | | ???????????????????????# #?? #????## | | ???????????????????????# #?# ????# ! | | ??????????????????????? ??# ???# ## % | | ??????????????????????? ??## ???# #?# | | ??????????????????????? "???## ???# ??## % | | ??????????????????????? "????####??# ????# | | | ??????????????????????? ??????????# ????# % | | ?????????????????????? ?????????? ????? | | ??????????????????????#?????????? ????? | | ???????????????????????????????? ?????? | | ?????????????????????????????????????????? ### | | ??????????????????????????????????????????##??### | | ????????????????????????????????????????????????? | | ????????????????????????????????????????????????? | | ????????????????????????????????????????????????? | | ?????????????????????????????????????????????????# | | ?????????????????????????????????????????????????? | | ?????????????????????????????????????????????????? | | ?????????????????????????????????????????????????? | +----------------------------------------------------+ Best States ------------- Heat Dissipation 39 Energy Generation 15 Energy Capacity 250 Matter Stores 300 Matter Capacity 300 Sight Range 16 Terrain Scan Range 16 Terrain Scan Density 10 Armor Coverage 150 Core Shielding 20 Evasion (%) 44 Item Schematics ----------------- None Robot Schematics ------------------ None Fabricated ------------ Nothing Alien Tech Used ----------------- None Achievements -------------- None Challenges ------------ None Game ------ Seed TripodVariableTearclaws Manual? 0 Play Time 00:27:54 Cumulative 55.5 hours Start 2025.01.03 @ 07:20:22 End 2025.01.03 @ 09:16:11 Sessions 1 Manual Loads 0 Difficulty Rogue Special Mode None Game No. 43 Rogue 28 Adventurer 15 Explorer 0 Win Type - Total 0 Types 0/0/0/0/0/0/0/0/0 Lore% 33 Gallery% 35 Achievement% 33 Wizard Run 0 Options --------- Layout 1 ASCII 0 Keyboard 0 Movement Mouse Keybinds 0 Fullscreen 1 Font 24/Smallcaps Map View 50x35 Zoom Use 0% Tactical HUD 1 Map Filters NONE Filters NONE Steam 1 RUN: b15601a9-7900-4d8d-b573-2c665d06014d